{"text_format":"1","workbook":"xlsx","n_sheets":4,"sheets":["data","text","New CP15A","Re-enrolled CP15A"],"not_rendered":{"charts":0,"images":9,"macros":1,"external_links":1,"defined_names":5,"comments":0,"pivot_tables":0},"unopened":[],"bounds":{"document_bytes":16777216,"sheet_cells":100000,"rows_first":2000,"rows_last":500,"rows_between":2000,"halvings":0,"cell_chars":16384,"cell_head_chars":4096},"cells_cut":0,"cells_raw":0,"read":"whole","date_system":"1900"}

{"sheet":"data","index":0,"n_rows":179,"n_cols":9,"rows_kept":179,"cut":false,"hidden":true,"merged":[[129,1,129,6],[56,5,56,11],[58,5,58,11],[59,5,59,11],[57,5,57,8],[121,4,121,6],[62,3,62,10],[64,2,64,8],[65,2,65,8],[66,2,66,8],[69,3,69,9],[70,3,70,9],[71,3,71,9],[130,1,130,6],[131,1,131,6],[132,1,132,6],[133,1,133,6],[134,1,134,6],[136,1,136,6],[137,1,137,6],[138,1,138,6],[139,1,139,6],[142,1,142,6],[143,1,143,6],[144,1,144,6],[145,1,145,6],[146,1,146,6],[147,1,147,6],[148,1,148,6],[149,1,149,6],[151,1,151,6],[152,1,152,6],[153,1,153,6],[162,1,162,6],[163,1,163,6],[164,1,164,6],[154,1,154,6],[155,1,155,6],[156,1,156,6],[157,1,157,6],[158,1,158,6],[176,1,176,6],[177,1,177,6],[178,1,178,6],[129,8,129,13],[170,1,170,6],[172,1,172,6],[173,1,173,6],[174,1,174,6],[175,1,175,6],[165,1,165,6],[166,1,166,6],[167,1,167,6],[168,1,168,6],[169,1,169,6],[159,1,159,6],[161,1,161,6]]}
["Participant",null,"Project or Contract"]
["Location",null,"County"]
["Farm Number",null,"Tract Number"]
[null,null,null,null,1]
[null,"Select ",null,null,2]
["x","CP 1",null,null,3]
[null,"CP 2",null,null,4]
[null,"CP 4D",null,null,5]
[null,"CP 8A",null,null,6]
[null,"CP 9",null,null,7]
[null,"CP 15A","new",null,8]
[null,"CP 21","re-enrolled",null,9]
[null,"CP 22",null,null,10]
[null,"CP 23"]
[null,"CP 23A"]
[null,"CP 29"]
[null,"CP 30"]
[null,"CP 33"]
[null,"CP 42"]
[]
[null,"Over-seeding Planned"]
["Mowing Pattern (Check 1) "]
[null,"Entire Acreage"]
[null,"Alternating row"]
[null,"Alternating block",null,null,"10 yrs to 10 yrs, 11 months           "]
[null,"Tree / Shrub Area  ",null,null,"11 yrs to 11 yrs, 11 months           "]
[null,"in year 4 or 5, but before end of year 6           ",null,null,"12 yrs to 12 yrs, 11 months           "]
[null,"in year 4 or 5, but before end of year 6",null,null,"13 yrs to 13 yrs, 11 months           "]
[null,"in year 4 or 5, but before end of year 6",null,null,"14 yrs to 14 yrs, 11 months           "]
[null,"in year 4 or 5, but before end of year 9           ",null,null,"15 years                                             "]
[null,"in year 4 or 5, but before end of year 9           ",null,null,"Re-enrollment contract"]
[null,"in year 4 or 5, but before end of year 9           "]
[{"$f":"data!#REF!","v":{"$error":"#REF!"}},"Not Applicable"]
[null,"before end of year 8"]
[null,"before end of year 9","Select a Purpose"]
[null,"before end of year 10","Reduce sheet and rill erosion."]
[null,"before end of year 11","Reduce water quality degradation from the transport of sediment and other water-borne contaminants downslope."]
[null,"before end of year 12","Improve soil moisture management through increased water infiltration."]
[null,"before end of year 13","Reduce water quality degradation from the transport of nutrients downslope."]
[null,"at re-enrollment","Provide long-term wildlife habitat for grassland species and/or pollinators."]
[]
[null,{"$f":"indirect","v":{"$error":"#NAME?"}}]
[]
[]
[]
[]
[]
[]
["Select County"]
["Adams"]
["Allegheny"]
["Armstrong"]
["Beaver"]
["Bedford"]
["Berks"]
["Blair",null,"Select site preparation method",null,"  ","   "]
["Bradford",null,"Apply appropriate herbicide(s) to CP15A acres prior to seeding, to remove existing vegetation.  ",null,null,"Use non-selective herbicides (like glyphosate) to remove all existing vegetation.  Extremely vigorous plants may require multiple treatments: apply herbicide(s) in early fall of the year prior to grass planting, followed by another spring application of herbicides at least two weeks prior to planting.  Always follow herbicide label instructions for rate, timing, and methods of herbicide application(s).  Take special care to avoid herbicide carryover that may negatively affect the CRP or CREP planting."]
["Bucks",null,"Cultivate the CP15A acres, to remove existing vegetation and prepare the seedbed. ",null,null,"Cultivation offers an alternative to herbicides, but requires careful consideration, as it is often less effective than herbicides for killing unwanted vegetation, may actually stir up weed seeds in the soil, and may increase the risk of runoff or erosion from sloped fields.  NRCS strongly recommends cover crops or nurse crops for erosion control and weed suppression on cultivated sites.  Plant cover crops of wheat, barley, or oats on the CP15A acres in the early fall of the year prior to grass planting.  Plant nurse crops of wheat, barley, or oats (oats are preferred, because they offer less competition to the new grasses) with the grass seed to minimize erosion and suppress weeds while minimizing competition.  Seed nurse crops at 1 bushel per acre."]
["Butler",null,"No site preparation is needed.",null,null,"This option only applies to fields with little or no weed pressure or competing vegetation AND little or no seed bed.  Be aware that weed control is easiest and most effective prior to planting, rather than after.  No cost-sharing is available from USDA for this activity. "]
["Cambria"]
["Cameron"]
["Carbon"]
["Centre"]
["Chester"]
["Clarion"]
["Clearfield"]
["Clinton"]
["Columbia"]
["Crawford"]
["Cumberland",null,null,"Conduct Prescribed Mowing on CP33 acres, dispersing mowing residues evenly across mowed areas.  Avoid wind rows, clumping, or other accumulated residues that may smother the desired cover or prevent seed-to-soil contact. "]
["Dauphin",null,null,"Conduct Prescribed Mowing on CP33 acres, removing mowing residues from the field by raking and baling, then destroying or donating residues.  Coordinate with FSA staff, who must verify the disposal of baled residues.  (Fee charged.) "]
["Delaware",null,null,"No management action needed.  No cost-sharing is associated with this option.  "]
["Elk"]
["Erie",null,"Select a MCM"]
["Fayette",null,"Inter-seeding / Overseeding"]
["Forest",null,"Prescribed Burning"]
["Franklin",null,"Prescribed Mowing"]
["Fulton"]
["Greene"]
["Huntingdon"]
["Indiana"]
["Jefferson"]
["Juniata"]
["Lackawanna"]
["Lancaster"]
["Lawrence"]
["Lebanon"]
["Lehigh"]
["Luzerne"]
["Lycoming"]
["McKean"]
["Mercer"]
["Mifflin"]
["Monroe"]
["Montgomery"]
["Montour"]
["Northampton"]
["Northumberland"]
["Perry"]
["Philadelphia"]
["Pike"]
["Potter"]
["Schuylkill"]
["Snyder"]
["Somerset"]
["Sullivan"]
["Susquehanna"]
["Tioga"]
["Union"]
["Venango"]
["Warren"]
["Washington"]
["Wayne"]
["Westmoreland"]
["Wyoming"]
["York"]
[]
[]
[]
[null,null,null,"   "]
[null,null,null,"Select a seeding method","   ",null,"         "]
[null,null,1,"No-Till drill.  ","After completion of site preparations, plant the selected seed mixture with a no-till drill, taking care to place seed at the proper depth in the soil.  Seeding pattern should be perpendicular to the direction of surface water flow whenever possible.  If planting native grasses, note that only switchgrass can be planted with a conventional no-till drill; all other WSGs require a no-till drill equipped with “fluffy seed” boxes or seed agitators of some kind.  Such drills may be available for free to USDA participants, from local PA Game Commission offices or Pheasants Forever chapters.  "]
["Native grasses typically need three years after seeding to fully establish.  During those three years, WSG establishment improves greatly with reduction of competing vegetation and/or weed pressure.  As a result, CRP and CREP rules allow mowing and spraying of WSG CP15A acres, at any time, for three years after seeding.  Do not mow CP15A acres lower than 8 inches, and follow all label instructions when applying appropriate herbicides.  Contact NRCS prior to mowing or spraying, for technical assistance and to document the establishment actions taken.",null,null,"Conventional drill.  ","After completion of site preparations, plant the selected seed mixture with a conventional drill, taking care to place seed at the proper depth in the soil.  If planting native grasses, note that only switchgrass can be planted with a conventional drill; all other WSGs require a no-till drill equipped with “fluffy seed” boxes or seed agitators of some kind.  Such drills may be available for free to USDA participants, from local PA Game Commission offices or Pheasants Forever chapters.  Cultipack/firm seed bed after seeding.  Seed and cultipack perpendicular to the direction of surface water flow whenever possible.  "]
["Introduced cool-season grasses typically need one year after seeding to fully establish.  During that year, CSG establishment improves greatly with reduction of competing vegetation and/or weed pressure.  As a result, CRP and CREP rules allow mowing and spraying of CSG CP15A acres, at any time, for one years after seeding.  Do not mow CP15A acres lower than 6 inches, and follow all label instructions when applying appropriate herbicides.  Contact NRCS prior to mowing or spraying, for technical assistance and to document the establishment actions taken.",null,3,"Broadcasting.  ","After completion of site preparations, plant the selected seed mixture by broadcasting seed.  Increase seeding rates by 50% more seed per acre when broadcasting, to compensate for lower germination rates resulting from less seed-to-soil contact.  For example, if a seed mixture’s no-till seeding rate is 6 lbs/ac, then the same seed mixture’s broadcast seeding rate would be 9 lbs/ac, to achieve similar germination rates.  Calibrate the broadcaster prior to spreading seed; use a free-flowing “carrier” material with the seed if needed.  For best results, broadcast half the total seed in one pattern (i.e. East – West), then broadcast the remaining seed opposite to the previous pattern (i.e. West – East).  Cultipack/firm seed bed after broadcasting; cultipacking pattern should be perpendicular to the direction of surface water flow whenever possible.     "]
[]
[]
["Choose a grass type","   ","    "]
["native grass and legume/wildflower mix"]
["introduced cool-season/legume grass mix"]
[null,null,null,null,null,null,null,null,"All native warm-season grasses  (choose one mix)                                                                                                                                                                                                                                                                                                                                                   S    Switchgrass (3 lbs) and deertongue (3 lbs)                                                                           WD, MWD, SPD, PD                                                                                                                                                                                                                        B    Big bluestem (3 lbs), Indiangrass (1 lb), and Little Bluestem (2)                                      EWD, WD, MWD                                                                                                                                                                              B    Big bluestem (3 lbs), Indiangrass (2 lbs), and switchgrass (1)                                         EWD, WD, MWD, SPD                                                                                                                                                                   B    Big bluestem (3 lbs), Indiangrass (1 lb), Little bluestem (2) and switchgrass (1)         EWD, WD, MWD, SPD                                                                                                                                                                OR                                                                                                                                                                                                                                                                                                                                                                         Mixed native warm-season and cool-season grasses (choose one mix)                                                                                                                                                                                                                                                                           B   Big bluestem (2 lbs), Indiangrass (1 lb), Little bluestem (1 lb), switchgrass (1 lb),                                                                                                                                                                            sideoats                 sideoats grama (1 lb), and Canada wildrye (2 lbs)                                  EWD, WD, MWD                                                                                           R   Riverbank wildrye (5 lbs), Virginia wildrye (5 lbs), and switchgrass (1 lb)                    WD, MWD, SPD, PD                                                                                 C   Canada wildrye (4 lbs) and switchgrass (3 lbs)                                                                   EWD, WD, MWD, SPD                                                                               OR                                                                                                                                                                                                                                                                                                                                                                          Native cool-season grasses  (choose one mix)                                                                                                                                                                                                                                                                                                              C   Canada wildrye (3 lbs), Virginia wildrye (3 lbs), Riverbank wildrye (2 lbs),                                                                                                                                                          and                          and Bottlebrush (2 lbs)                                                                                  WD, MWD, SPD                                                                                                          C   Canada wildrye (4 lbs), Virginia wildrye (4 lbs), and Riverbank wildrye (2 lbs)           EWD, WD, MWD                                                                                                    R   Riverbank wildrye (4 lbs), Virginia wildrye (4 lbs), and Canada wildrye (2 lbs)           WD, MWD, SPD "]
[null,"Mixed native warm-season and cool-season grasses (choose one mix)"]
[null,"          Big bluestem (2 lbs), Indiangrass (1 lb), Little bluestem (1 lb), switchgrass (1 lb), sideoats grama (1 lb), and Canada wildrye (2 lbs)    EWD, WD, MWD   "]
[null,"          Big bluestem (3 lbs), eastern gamagrass (2 lbs), switchgrass (1 lb), deertongue (1 lb), and Virginia wildrye (3 lbs)    MWD, SPD "]
[null,"          Riverbank wildrye (5 lbs), Virginia wildrye (5 lbs), and switchgrass (1 lb)    WD, MWD, SPD, PD "]
[null,"          Canada wildrye (4 lbs) and switchgrass (3 lbs)    EWD, WD, MWD, SPD"]
[null,null,null,"OR"]
[null,"Native cool-season grasses  (choose one mix) "]
[null,"          Canada wildrye (3 lbs), Virginia wildrye (3 lbs), Riverbank wildrye (2 lbs), and Bottlebrush (2 lbs)    WD, MWD, SPD   "]
[null,"          Canada wildrye (4 lbs), Virginia wildrye (4 lbs), and Riverbank wildrye (2 lbs)    EWD, WD, MWD   "]
[null,"         Riverbank wildrye (4 lbs), Virginia wildrye (4 lbs), and Canada wildrye (2 lbs)    WD, MWD, SPD  "]
[]
[]
[null,"One grass / One legume  "]
[null,"                Timothy  (WD, MWD, SPD, PD)            or"]
[null,"                Orchardgrass  (EWD, WD, MWD)       or"]
[null,"                Kentucky bluegrass  (WD, MWD)      or"]
[null,"                Smooth bromegrass  (WD, MWD, SPD)"]
[null,"                               AND"]
[null,"                Birdsfoot trefoil  (WD, MWD)           or"]
[null,"                Ladino clover  (MWD)"]
[]
[null,"One grass / Three legumes  "]
[null,"                Timothy  (WD, MWD, SPD, PD)            or"]
[null,"                Orchardgrass  (EWD, WD, MWD)       or"]
[null,"                Kentucky bluegrass  (WD, MWD)      or"]
[null,"                Smooth bromegrass  (WD, MWD, SPD)"]
[null,"                               AND"]
[null,"                Ladino clover  (MWD)                       and"]
[null,"                Red clover  (WD, MWD)                    and"]
[null,"                Alsike clover  (SPD, PD)"]
[]
[null,"Two grasses / Two legumes "]
[null,"                Timothy  (WD, MWD, SPD, PD)         and"]
[null,"                Orchardgrass  (EWD, WD, MWD)    and"]
[null,"                Red clover  (WD, MWD)                   and"]
[null,"                Alsike clover  (SPD, PD)"]
[null,"                               OR"]
[null,"                Orchardgrass  (EWD, WD, MWD)    and"]
[null,"                Smooth bromegrass (WD, MWD, SPD) and"]
[null,"                Red clover  (WD, MWD)                   and"]
[null,"                Ladino clover  (MWD)"]
[]
[null,"Three grasses / Three legumes "]
[null,"                Timothy  (WD, MWD, SPD, PD)         and"]
[null,"                Orchardgrass  (EWD, WD, MWD)    and"]
[null,"                Smooth bromegrass (WD, MWD, SPD) and"]
[null,"                Ladino clover  (MWD)                     and"]
[null,"                Red clover  (WD, MWD)                  and"]
[null,"                Alsike clover  (SPD, PD)"]

{"sheet":"text","index":1,"n_rows":14,"n_cols":17,"rows_kept":14,"cut":false,"hidden":true,"merged":[[0,0,0,13],[11,16,11,27],[12,16,12,27],[13,16,13,27]]}
["CP"]
[1,2,"4D","8A",9,"15A",21,22,23,"23A",29,30,33,42,"comment"]
[null,null,null,"x",null,"x","x",null,null,null,null,null,null,null,"May receive a one-time Prescribed Mowing of their entire acreage.  "]
[]
[]
[]
[]
[]
[]
[]
[]
[null,null,null,null,null,null,null,null,null,null,null,null,null,null,null,null,"No-Till drill /specialized No-Till drill.  After completion of site preparations, plant the selected seed mixture with a no-till drill, taking care to place seed at the proper depth in the soil.  Seeding pattern should be perpendicular to the direction of surface water flow whenever possible.  Note that only switchgrass can be planted with a conventional no-till drill; all other WSGs require a no-till drill equipped with “fluffy seed” boxes or seed agitators of some kind.  Such drills may be available for free to USDA participants, from local PA Game Commission offices or Pheasants Forever chapters.  "]
[null,null,null,null,null,null,null,null,null,null,null,null,null,null,null,null,"Conventional drill.  After completion of site preparations, plant the selected seed mixture with a conventional drill, taking care to place seed at the proper depth in the soil.  Note that only switchgrass can be planted with a conventional no-till drill; all other WSGs require a no-till drill equipped with “fluffy seed” boxes or seed agitators of some kind.  Cultipack/firm seed bed after seeding.  Seed and cultipack perpendicular to the direction of surface water flow whenever possible.  "]
[null,null,null,null,null,null,null,null,null,null,null,null,null,null,null,null,"Broadcasting.  After completion of site preparations, plant the selected seed mixture by broadcasting seed.  Increase seeding rates by 50% more seed per acre when broadcasting, to compensate for lower germination rates resulting from less seed-to-soil contact.  For example, if a seed mixture’s no-till seeding rate is 6 lbs/ac, then the same seed mixture’s broadcast seeding rate would be 9 lbs/ac, to achieve similar germination rates.  Calibrate the broadcaster prior to spreading seed; use a free-flowing “carrier” material with the seed if needed.  For best results, broadcast half the total seed in one pattern (i.e. East – West), then broadcast the remaining seed perpendicular to the previous pattern (i.e. North – South).  Cultipack/firm seed bed after broadcasting; cultipacking pattern should be perpendicular to the direction of surface water flow whenever possible.     "]

{"sheet":"New CP15A","index":2,"n_rows":171,"n_cols":25,"rows_kept":171,"cut":false,"hidden":false,"merged":[[54,12,54,14],[55,2,55,8],[55,12,55,14],[56,2,56,8],[56,12,56,14],[67,2,67,8],[67,12,67,14],[68,2,68,8],[68,12,68,14],[64,2,64,11],[64,12,64,14],[65,2,65,8],[65,12,65,14],[66,2,66,8],[66,12,66,14],[69,2,69,7],[69,12,69,14],[70,2,70,8],[70,12,70,14],[41,12,41,14],[43,2,43,11],[44,2,44,8],[44,12,44,14],[45,2,45,8],[45,12,45,14],[46,2,46,8],[46,12,46,14],[47,2,47,8],[47,12,47,14],[57,2,57,8],[57,12,57,14],[51,2,51,8],[51,12,51,14],[53,2,53,11],[54,2,54,8],[60,12,60,14],[61,2,61,8],[62,2,62,8],[62,12,62,14],[154,4,154,8],[155,4,155,8],[152,11,153,11],[152,12,153,12],[152,9,153,9],[129,4,129,5],[129,6,129,7],[129,12,129,14],[132,4,132,5],[132,6,132,7],[131,6,131,7],[131,12,131,14],[140,2,140,10],[141,2,141,14],[136,4,136,5],[136,6,136,7],[136,12,136,14],[137,4,137,5],[137,6,137,7],[137,12,137,14],[134,4,134,5],[134,6,134,7],[134,12,134,14],[135,4,135,5],[100,2,100,14],[101,2,101,14],[88,2,88,8],[89,2,89,8],[96,2,96,6],[128,4,128,5],[128,6,128,7],[128,12,128,14],[126,6,127,7],[126,8,127,8],[126,9,127,9],[126,10,126,11],[126,12,126,14],[99,9,99,13],[102,3,102,14],[112,2,112,6],[112,7,112,10],[112,11,112,14],[113,2,113,6],[113,7,113,10],[113,11,113,14],[114,2,114,6],[44,30,47,30],[97,2,97,14],[50,32,51,32],[82,2,82,8],[83,2,83,8],[84,2,84,8],[85,2,85,8],[90,2,90,8],[82,12,82,14],[83,12,83,14],[84,12,84,14],[87,2,87,11],[85,12,85,14],[92,2,92,14],[48,2,48,7],[48,12,48,14],[49,2,49,8],[49,12,49,14],[58,2,58,7],[58,12,58,14],[59,2,59,8],[59,12,59,14],[50,2,50,8],[50,12,50,14],[167,2,167,14],[166,2,166,10],[120,2,120,14],[105,2,105,14],[106,2,106,14],[107,2,107,14],[108,2,108,14],[152,4,153,7],[151,2,152,2],[152,13,152,14],[118,2,118,14],[152,3,153,3],[152,10,153,10],[125,2,126,2],[126,3,127,3],[126,4,127,5],[161,4,161,8],[162,4,162,8],[163,4,163,8],[156,4,156,8],[157,4,157,8],[158,4,158,8],[159,4,159,8],[160,4,160,8],[4,11,4,13],[29,12,29,14],[2,11,2,13],[88,12,88,14],[89,12,89,14],[90,12,90,14],[18,2,18,14],[22,2,22,14],[7,2,7,14],[10,2,10,14],[2,4,2,8],[3,4,3,8],[4,4,4,8],[76,2,76,8],[77,2,77,8],[75,2,75,8],[25,2,25,14],[2,2,2,3],[3,2,3,3],[4,2,4,3],[11,2,11,3],[12,2,12,3],[78,12,78,14],[79,12,79,14],[13,2,13,3],[76,12,76,14],[77,12,77,14],[78,2,78,8],[19,2,19,14],[20,2,20,14],[24,2,24,13],[81,2,81,11],[79,2,79,8],[26,3,26,14],[72,12,72,14],[30,8,30,13],[34,2,34,8],[35,12,35,14],[36,12,36,14],[37,12,37,14],[43,12,43,14],[38,12,38,14],[39,2,39,8],[39,12,39,14],[40,2,40,8],[40,12,40,14],[41,2,41,8],[60,2,60,8],[135,6,135,7],[135,12,135,14],[109,2,109,6],[109,7,109,10],[109,11,109,14],[110,2,110,6],[110,7,110,10],[110,11,110,14],[111,2,111,6],[111,7,111,10],[111,11,111,14],[114,7,114,10],[114,11,114,14],[115,2,115,6],[115,7,115,10],[115,11,115,14],[132,12,132,14],[133,4,133,5],[133,6,133,7],[133,12,133,14],[130,4,130,5],[130,6,130,7],[130,12,130,14],[131,4,131,5]]}
[]
[]
[null,null,"Participant:",null,null,null,null,null,null,null,"FSA Contract:  ",null,null,null,null,null,null,null,null,null,null,null,null,null,"Enhance wildlife habitat by increasing forb diversity."]
[null,null,"Location:",null,null,null,null,null,null,null,"County:  "]
[null,null,"Farm Number:",null,null,null,null,null,null,null,"Tract Number:  "]
[]
[null,null,"Definition:"]
[null,null,"Contour filter strips are strips of perennial grass alternated with wider cultivated strips that are farmed on the contour. Vegetation in contour filter strips consists of native grasses and forbs/legumes or introduced cool-season grasses and legumes."]
[]
[null,null,"Purpose:  "]
[null,null,"This practice establishes and maintains contour filter strips of introduced or native grasses, forbs, and legumes on eligible cropland to: "]
[null,null,"1."]
[null,null,"2."]
[null,null,"3."]
[null,null,null,"4."]
[null,null,null,"5."]
[]
[null,null,"Description:"]
[null,null,"The herbaceous plants (grasses, forbs, legumes, etc.) in a contour filter strip slow runoff, trap sediment, and reduce erosion that would otherwise carry nutrients, pesticides and other pollutants from agricultural fields.  The contour filter strips offer safety, food and living space for many wildlife species, frequently providing much-needed connecting corridors and linkages across the landscape; in some cases, the strips also provide nectar, pollen, and egg-laying sites for pollinators.  The plants in contour filter strips also improve air quality by removing carbon dioxide from the air and storing it as organic carbon in the vegetation and soil."]
[]
[]
[null,"Yes","Practice Guidance for New CP15A Acres:  "]
[null,"Yes","Establish contour filter strips of either native grasses and legumes/wildflowers or introduced cool-season grasses in the fields indicated in Table 1 and on the Conservation Plan Map, by following the Site Preparation and Planting guidance below.  Weed control (mowing or herbicide treatment) during the establishment period after seeding may help the contour filter strip(s) establish succeessfully.  After successful establishment of the filter strip(s), follow the Operation and Maintenance requirements below.  CRP/CREP contracts also require periodic management of CP15A acres, which should follow the Mid-Contract Management guidance below."]
[null,"Yes","Site Preparation Method"]
[null,"Yes","Select site preparation method"]
[null,"Yes",{"$f":"IF(C25=data!C57,data!F57, IF(C25=data!C58,data!F58, IF(C25=data!C59,data!F59)))","v":false}]
[null,null,"SITE-                   SPECIFIC NOTES","Enter text here"]
[]
[]
[null,"Yes","Planting Guidance for New CP15A Acres      "]
[null,null,"  The filter strip(s) will be planted as:",null,null,null,null,null,"Choose a grass type"]
[null,null,null,null,null,null,null,null,null,null,null,null,null,"Gray areas for USDA"]
[null,null,null,null,null,null,null,null,null,null,null,"lbs of ",null,"use only"]
[null,null,"Cool-season grass mix and drainage class*",null,null,null,null,null,null,"lbs / ac","Acres","seed","Seed tag verified?    "]
[null,null,"One grass / One legume",null,null,null,null,null,null,null,null,"needed","Yes","No"]
[null,"Yes","                Timothy  (WD, MWD, SPD, PD)            or",null,null,null,null,null,null,4,null,{"$f":"ROUNDUP((J36*K36),0)","v":0}]
[null,"Yes","                Orchardgrass  (EWD, WD, MWD)       or",null,null,null,null,null,null,5,null,{"$f":"ROUNDUP((J37*K37),0)","v":0}]
[null,"Yes","                Kentucky bluegrass  (WD, MWD)      or",null,null,null,null,null,null,7,null,0]
[null,"Yes","                Smooth bromegrass  (WD, MWD, SPD)",null,null,null,null,null,null,7,null,0]
[null,"Yes","                               AND"]
[null,"Yes","                Birdsfoot trefoil  (WD, MWD)           or",null,null,null,null,null,null,6,null,0]
[null,"Yes","                Ladino clover  (MWD)",null,null,null,null,null,null,2,null,0]
[null,"Yes"]
[null,"Yes","One grass / Three legumes"]
[null,"Yes","                Timothy  (WD, MWD, SPD, PD)            or",null,null,null,null,null,null,4,null,{"$f":"ROUNDUP((J45*K45),0)","v":0}]
[null,"Yes","                Orchardgrass  (EWD, WD, MWD)       or",null,null,null,null,null,null,5,null,{"$f":"ROUNDUP((J46*K46),0)","v":0}]
[null,"Yes","                Kentucky bluegrass  (WD, MWD)      or",null,null,null,null,null,null,7,null,0]
[null,"Yes","                Smooth bromegrass  (WD, MWD, SPD)",null,null,null,null,null,null,7,null,0]
[null,"Yes","                               AND"]
[null,"Yes","                Ladino clover  (MWD)                       and",null,null,null,null,null,null,1,null,{"$f":"ROUNDUP((J50*K50),0)","v":0}]
[null,"Yes","                Red clover  (WD, MWD)                    and",null,null,null,null,null,null,2,{"$f":"K50","v":0},{"$f":"ROUNDUP((J51*K51),0)","v":0}]
[null,"Yes","                Alsike clover  (SPD, PD)",null,null,null,null,null,null,1,{"$f":"K50","v":0},0]
[null,"Yes"]
[null,"Yes","Two grasses / Two legumes"]
[null,"Yes","                Timothy  (WD, MWD, SPD, PD)         and",null,null,null,null,null,null,4,null,{"$f":"ROUNDUP((J55*K55),0)","v":0}]
[null,null,"                Orchardgrass  (EWD, WD, MWD)    and",null,null,null,null,null,null,5,{"$f":"K55","v":0},{"$f":"ROUNDUP((J56*K56),0)","v":0}]
[null,null,"                Red clover  (WD, MWD)                   and",null,null,null,null,null,null,2,{"$f":"K55","v":0},0]
[null,"Yes","                Alsike clover  (SPD, PD)",null,null,null,null,null,null,2,{"$f":"K55","v":0},0]
[null,"Yes","                                OR"]
[null,"Yes","                Orchardgrass  (EWD, WD, MWD)    and",null,null,null,null,null,null,5,null,{"$f":"ROUNDUP((J60*K60),0)","v":0}]
[null,"Yes","                Smooth bromegrass (WD, MWD, SPD) and",null,null,null,null,null,null,6,{"$f":"K60","v":0},{"$f":"ROUNDUP((J61*K61),0)","v":0}]
[null,null,"                Red clover  (WD, MWD)                   and",null,null,null,null,null,null,2,{"$f":"K60","v":0},0]
[null,"Yes","                Ladino clover  (MWD)",null,null,null,null,null,null,2,{"$f":"K60","v":0},0]
[null,"Yes"]
[null,null,"Three grasses / Three legumes "]
[null,null,"                Timothy  (WD, MWD, SPD, PD)         and",null,null,null,null,null,null,3,null,{"$f":"ROUNDUP((J66*K66),0)","v":0}]
[null,null,"                Orchardgrass  (EWD, WD, MWD)    and",null,null,null,null,null,null,3,{"$f":"K66","v":0},{"$f":"ROUNDUP((J67*K67),0)","v":0}]
[null,null,"                Smooth bromegrass (WD, MWD, SPD) and",null,null,null,null,null,null,4,{"$f":"+K66","v":0},0]
[null,null,"                Ladino clover  (MWD)                     and",null,null,null,null,null,null,1,{"$f":"K66","v":0},0]
[null,null,"                Red clover  (WD, MWD)                  and",null,null,null,null,null,null,2,{"$f":"K66","v":0},0]
[null,null,"                Alsike clover  (SPD, PD)",null,null,null,null,null,null,1,{"$f":"K66","v":0},0]
[]
[null,null,null,null,null,null,null,null,null,null,null,null,"Items in gray for USDA"]
[null,null,null,null,null,null,null,null,null,null,null,"lbs of ",null,"use only"]
[null,null,"Warm-Season Grass Mix and drainage class*",null,null,null,null,null,null,"lbs / ac","Acres","seed",null,"Seed tag verified?"]
[null,null,"All native warm-season grasses  (choose one mix)",null,null,null,null,null,null,null,null,"needed","Yes","No"]
[null,null,"          Switchgrass (3 lbs) and deertongue (3 lbs)                                     WD, MWD, SPD, PD ",null,null,null,null,null,null,6,null,{"$f":"ROUNDUP((J77*K77),0)","v":0}]
[null,null,"          Big bluestem (3 lbs), Indiangrass (1 lb), and Little Bluestem (2)    EWD, WD, MWD ",null,null,null,null,null,null,6,null,{"$f":"ROUNDUP((J78*K78),0)","v":0}]
[null,null,"          Big bluestem (3 lbs), Indiangrass (2 lbs), and switchgrass (1)    EWD, WD, MWD, SPD ",null,null,null,null,null,null,6,null,0]
[null,null,"          Big bluestem (3 lbs), Indiangrass (1 lb), Little bluestem (2) and switchgrass (1)                        EWD, WD, MWD, SPD   ",null,null,null,null,null,null,7,null,0]
[null,null,null,null,"OR"]
[null,null,"Mixed native warm-season and cool-season grasses (choose one mix)"]
[null,null,"          Big bluestem (2 lbs), Indiangrass (1 lb), Little bluestem (1 lb), switchgrass (1 lb), sideoats grama (1 lb), and Canada wildrye (2 lbs)    EWD, WD, MWD   ",null,null,null,null,null,null,8,null,{"$f":"ROUNDUP((J83*K83),0)","v":0}]
[null,null,"          Big bluestem (3 lbs), eastern gamagrass (2 lbs), switchgrass (1 lb), deertongue (1 lb), and Virginia wildrye (3 lbs)    MWD, SPD ",null,null,null,null,null,null,10,null,{"$f":"ROUNDUP((J84*K84),0)","v":0}]
[null,null,"          Riverbank wildrye (5 lbs), Virginia wildrye (5 lbs), and switchgrass (1 lb)    WD, MWD, SPD, PD ",null,null,null,null,null,null,11,null,0]
[null,null,"          Canada wildrye (4 lbs) and switchgrass (3 lbs)    EWD, WD, MWD, SPD",null,null,null,null,null,null,7,null,0]
[null,null,null,null,"OR"]
[null,null,"Native cool-season grasses  (choose one mix) "]
[null,null,"          Canada wildrye (3 lbs), Virginia wildrye (3 lbs), Riverbank wildrye (2 lbs), and Bottlebrush (2 lbs)    WD, MWD, SPD   ",null,null,null,null,null,null,10,null,{"$f":"ROUNDUP((J89*K89),0)","v":0}]
[null,null,"          Canada wildrye (4 lbs), Virginia wildrye (4 lbs), and Riverbank wildrye (2 lbs)    EWD, WD, MWD   ",null,null,null,null,null,null,10,null,{"$f":"ROUNDUP((J90*K90),0)","v":0}]
[null,null,"         Riverbank wildrye (4 lbs), Virginia wildrye (4 lbs), and Canada wildrye (2 lbs)    WD, MWD, SPD  ",null,null,null,null,null,null,10,null,0]
[]
[null,null,"* Abbreviations represent the following soil drainage categories:  EWD = Excessively Well Drained; WD = Well Drained; MWD = Moderately Well Drained; SPD = Somewhat Poorly Drained; PD = Poorly Drained"]
[]
[]
[null,null,"Planting Method for New CP15A acres"]
[null,null,"Select a seeding method"]
[null,null,{"$f":"IF(C97=data!D122,data!E122,IF(C97=data!D123,data!E123,IF(C97=data!D124,data!E124)))","v":false}]
[null,null,"Establishment of New CP15A Acres"]
[null,null,"Type of grass used in contour filter strip(s):",null,null,null,null,null,null,"Choose a grass type"]
[null,null,{"$f":"IF(J100=data!A128,data!A123,IF(J100=data!A129,data!A124))","v":false}]
[null,null,"After the establishment period ends, mowing and spraying must follow the more restrictive timing and guidance given in Operation and Maintenance, below.  Therefore, NRCS recommends using the available mowing and/or spraying to its full advantage in the establishment years, to promote the most vigorous CP15A cover possible.    "]
[null,null,"SITE-                   SPECIFIC NOTES","Enter text here"]
[]
[null,null,"Operation and Maintenance:   "]
[null,null,"To be compliant with the CRP/CREP contract, the original width of all CP15A acres must still be present, must still be on the contour, and must not have developed areas of concentrated flow through them.  The CP15A acres must have herbaceous vegetation that is thick and lush at the ground surface throughout, to filter sediment and absorb nutrients."]
[null,null,"To control unwanted vegetation and to keep the existing conservation cover in compliance with the CRP/CREP contract, perform maintenance (by spot mowing or herbicide treatment) on specific, limited locations where weeds occur (not whole fields or pre-set amounts of fields (i.e. 1/3 of a field).  Maintenance mowing may involve up to 20% (one-fifth) of any CP15A field in any given year.  To avoid permanent damage to CP15A cover, do not mow WSGs below 8 inches or CSGs below 6 inches.  Treatment with appropriate herbicides should always follow label directions for rate, amount, and timing of herbicide application.  "]
[null,null,"Both spot mowing and herbicide treatment must occur between August 1 and August 31.  Spot mowing or herbicide treatment needed at other times of the year—for example, thistle control in May or early June—is possible, but must be requested from and pre-approved by the FSA County Committee.  "]
[null,null,"Control noxious weeds on all CP15A acres over the entire length of the CRP/CREP contract.  Mowing alone may not be sufficient to control noxious or woody vegetation; a follow-up herbicide treatment may be necessary.  Any CP15A cover destroyed must be re-established."]
[null,null,"animated oat",null,null,null,null,"giant hogweed",null,null,null,"musk/nodding thistle"]
[null,null,"broomrape",null,null,null,null,"goatsrue",null,null,null,"Palmer amaranth"]
[null,null,"bull thistle",null,null,null,null,"hydrilla",null,null,null,"poison hemlock"]
[null,null,"Canada thistle",null,null,null,null,"johnsongrass",null,null,null,"purple loosestrife"]
[null,null,"common waterhemp",null,null,null,null,"kudzu",null,null,null,"shattercane"]
[null,null,"dodder",null,null,null,null,"mile-a-minute",null,null,null,"tall waterhemp"]
[null,null,"Eur. wand loosestrife",null,null,null,null,"multiflora rose",null,null,null,"wavyleaf basketgrass"]
[]
[null,null,"Mid-Contract Management (MCM):   "]
[null,null,"Implement the MCM practices indicated in Table 2 below, to prolong, improve, or diversify the benefits of the CP15A cover.  Contact NRCS for a site visit and field evaluation before conducting MCM, to verify that the contracted MCM activity applies to the condition of the site."]
[]
[null,null,"By signing this document, the participant agrees to implement the CP15A conservation practice following the technical recommendations provided by NRCS and approved by FSA.  Any changes to the CP15A practice must receive NRCS and FSA approval prior to implementation."]
[]
[]
[]
[null,null,"Table 1: CP15A Implementation and Schedule"]
[null,null,"Select number of fields",null,null,null,null,null,null,null,"     (items in grey are for USDA reporting only)"]
[null,null,null,"Field","Acres Planned",null,"Year Planned",null,"Acres Applied","Date Applied","Certified by",null,"Comments"]
[null,null,10,null,null,null,null,null,null,null,"NRCS","Part."]
[null,null,null,1]
[{"$f":"IF($C$128<2,\"No\",\"Yes\")","v":"Yes"},null,null,2]
[{"$f":"IF($C$128<3,\"No\",\"Yes\")","v":"Yes"},null,null,3]
[{"$f":"IF($C$128<4,\"No\",\"Yes\")","v":"Yes"},null,null,4]
[{"$f":"IF($C$128<5,\"No\",\"Yes\")","v":"Yes"},null,null,5]
[{"$f":"IF($C$128<6,\"No\",\"Yes\")","v":"Yes"},null,null,6]
[{"$f":"IF($C$128<7,\"No\",\"Yes\")","v":"Yes"},null,null,7]
[{"$f":"IF($C$128<8,\"No\",\"Yes\")","v":"Yes"},null,null,8]
[{"$f":"IF($C$128<9,\"No\",\"Yes\")","v":"Yes"},null,null,9]
[{"$f":"IF($C$128<10,\"No\",\"Yes\")","v":"Yes"},null,null,10]
[]
[]
[null,null,"Certification Statement:"]
[null,null,"I certify that implementation of this conservation practice is complete, meets criteria for the stated purpose(s), and meets the NRCS conservation practice standard and specifications."]
[]
[null,null,"Certified By:"]
[]
[]
[]
[]
[]
[]
[null,null,"Table 2: Mid-Contract Management Activity and Schedule"]
[null,null,"Select number of fields",null,null,null,null,null,null,null,"     (items in grey are for USDA reporting only)"]
[null,null,null,"Field","Mid-Contract Management",null,null,null,null,"Acres Planned","Year Planned","Acres Applied","Year Applied","Certified By:"]
[null,null,10,null,null,null,null,null,null,null,null,null,null,"NRCS / TSP","Participant"]
[null,null,null,1,"Select a MCM"]
[{"$f":"IF($C$154<2,\"No\",\"Yes\")","v":"Yes"},null,null,2,"Select a MCM"]
[{"$f":"IF($C$154<3,\"No\",\"Yes\")","v":"Yes"},null,null,3,"Select a MCM"]
[{"$f":"IF($C$154<4,\"No\",\"Yes\")","v":"Yes"},null,null,4,"Select a MCM"]
[{"$f":"IF($C$154<5,\"No\",\"Yes\")","v":"Yes"},null,null,5,"Select a MCM"]
[{"$f":"IF($C$154<6,\"No\",\"Yes\")","v":"Yes"},null,null,6,"Select a MCM"]
[{"$f":"IF($C$154<7,\"No\",\"Yes\")","v":"Yes"},null,null,7,"Select a MCM"]
[{"$f":"IF($C$154<8,\"No\",\"Yes\")","v":"Yes"},null,null,8,"Select a MCM"]
[{"$f":"IF($C$154<9,\"No\",\"Yes\")","v":"Yes"},null,null,9,"Select a MCM"]
[{"$f":"IF($C$154<10,\"No\",\"Yes\")","v":"Yes"},null,null,10,"Select a MCM"]
[]
[]
[null,null,"Certification Statement:"]
[null,null,"I certify that implementation of this conservation practice is complete, meets criteria for the stated purpose(s), and meets the NRCS conservation practice standard and specifications."]
[]
[]
[null,null,"Certified By:"]

{"sheet":"Re-enrolled CP15A","index":3,"n_rows":70,"n_cols":25,"rows_kept":70,"cut":false,"hidden":false,"merged":[[42,2,42,6],[42,7,42,10],[42,11,42,14],[37,2,37,6],[37,7,37,10],[37,11,37,14],[38,2,38,6],[38,7,38,10],[38,11,38,14],[39,11,39,14],[40,2,40,6],[40,7,40,10],[40,11,40,14],[41,2,41,6],[33,2,33,14],[53,13,53,14],[55,4,55,8],[66,2,66,14],[59,4,59,8],[60,4,60,8],[61,4,61,8],[62,4,62,8],[63,4,63,8],[64,4,64,8],[41,7,41,10],[56,4,56,8],[57,4,57,8],[65,2,65,10],[36,2,36,6],[36,7,36,10],[58,4,58,8],[34,2,34,14],[35,2,35,14],[45,2,45,14],[47,2,47,14],[52,2,53,2],[53,3,54,3],[53,4,54,7],[53,9,54,9],[53,10,54,10],[53,11,54,11],[53,12,54,12],[39,2,39,6],[39,7,39,10],[41,11,41,14],[36,11,36,14],[28,3,28,14],[29,36,30,36],[29,37,30,37],[30,2,30,14],[32,2,32,14],[2,2,2,3],[2,4,2,8],[2,11,2,13],[3,2,3,3],[3,4,3,8],[4,2,4,3],[4,4,4,8],[4,11,4,13],[29,2,29,14],[19,2,19,14],[20,2,20,14],[7,2,7,14],[10,2,10,14],[11,2,11,3],[12,2,12,3],[18,2,18,14],[22,2,22,14],[24,2,24,14],[25,3,25,14],[26,3,26,14],[27,3,27,14]]}
[]
[]
[null,null,"Participant:",null,null,null,null,null,null,null,"FSA Contract:  ",null,null,null,null,null,null,null,null,null,null,null,null,null,"Enhance wildlife habitat by increasing forb diversity."]
[null,null,"Location:",null,null,null,null,null,null,null,"County:  "]
[null,null,"Farm Number:",null,null,null,null,null,null,null,"Tract Number:  "]
[]
[null,null,"Definition:"]
[null,null,"Contour filter strips are strips of perennial grass alternated with wider cultivated strips that are farmed on the contour. Vegetation in contour filter strips consists of native grasses and forbs/legumes or introduced cool-season grasses and legumes."]
[]
[null,null,"Purpose:  "]
[null,null,"This practice maintains existing contour filter strips of introduced or native grasses, forbs, and legumes on eligible cropland to: "]
[null,null,"1."]
[null,null,"2."]
[null,null,null,"3."]
[null,null,null,"4."]
[null,null,null,"5."]
[]
[null,null,"Description:"]
[null,null,"The herbaceous plants (grasses, forbs, legumes, etc.) in a contour filter strip slow runoff, trap sediment, and reduce erosion that would otherwise carry nutrients, pesticides and other pollutants from agricultural fields.  The contour filter strips offer safety, food and living space for many wildlife species, frequently providing much-needed connecting corridors and linkages across the landscape; in some cases, the strips also provide nectar, pollen, and egg-laying sites for pollinators.  The plants in contour filter strips also improve air quality by removing carbon dioxide from the air and storing it as organic carbon in the vegetation and soil."]
[]
[]
[null,null,"Practice Guidance for Re-Enrolled CP15A Acres:  "]
[null,null,"Maintain the existing contour filter strips in the fields shown in Table 1 and on the Conservation Plan Map, to provide ongoing erosion control and wildlife habitat for grassland species for the length of the new CRP/CREP contract."]
[null,null,"Grass Management for Re-Enrolled CP15A Acres"]
[null,null,"The current CP15A cover may benefit from actions to re-invigorate the herbaceous cover and prolong that cover throughout the new CRP/CREP contract.  Implement all activities checked below.  More than one management activity may be needed, or none may be needed.  Discuss cost-sharing or reimbursement availability with FSA prior to implementation of the actions. "]
[null,null,null,"Conduct Prescribed Mowing on CP15A acres, dispersing mowing residues evenly across mowed areas.  Avoid wind rows, clumping, or other accumulated residues that may smother the desired cover or prevent seed-to-soil contact. "]
[null,null,null,"Conduct Prescribed Mowing on CP15A acres, removing mowing residues from the field by raking and baling, then destroying or donating residues.  Coordinate with FSA staff, who must verify the disposal of baled residues.  (Fee charged.) "]
[null,null,null,"No management action needed.  No cost-sharing is associated with this option.  "]
[null,null,"SITE-                   SPECIFIC NOTES","Enter text here"]
[]
[]
[null,null,"Operation and Maintenance:   "]
[null,null,"To be compliant with the CRP/CREP contract, the original width of all CP15A acres must still be present, must still be on the contour, and must not have developed areas of concentrated flow through them.  The CP15A acres must have herbaceous vegetation that is thick and lush at the ground surface throughout, to filter sediment and absorb nutrients."]
[null,null,"To control unwanted vegetation and to keep the existing conservation cover in compliance with the CRP/CREP contract, perform maintenance (by spot mowing or herbicide treatment) on specific, limited locations where weeds occur (not whole fields or pre-set amounts of fields (i.e. 1/3 of a field).  Maintenance mowing may cover up to 20% (one-fifth) of any CP15A field in any given year.  To avoid permanent damage to CP15A cover, do not mow WSGs below 8 inches or CSGs below 6 inches.  Treatment with appropriate herbicides should always follow label directions for rate, amount, and timing of herbicide application.  "]
[null,null,"Both spot mowing and herbicide treatment must occur between August 1 and August 31.  Spot mowing or herbicide treatment needed at other times of the year—for example, thistle control in May or early June—is possible, but must be requested from and pre-approved by the FSA County Committee.  "]
[null,null,"Control noxious weeds (see list below) on all CP15A acres over the entire length of the CRP/CREP contract.  Mowing alone may not be sufficient to control noxious or woody vegetation; a follow-up herbicide treatment may be necessary.  Any CP15A cover destroyed must be re-established."]
[null,null,"animated oat",null,null,null,null,"giant hogweed",null,null,null,"musk/nodding thistle"]
[null,null,"broomrape",null,null,null,null,"goatsrue",null,null,null,"Palmer amaranth"]
[null,null,"bull thistle",null,null,null,null,"hydrilla",null,null,null,"poison hemlock"]
[null,null,"Canada thistle",null,null,null,null,"johnsongrass",null,null,null,"purple loosestrife"]
[null,null,"common waterhemp",null,null,null,null,"kudzu",null,null,null,"shattercane"]
[null,null,"dodder",null,null,null,null,"mile-a-minute",null,null,null,"tall waterhemp"]
[null,null,"Eur. wand loosestrife",null,null,null,null,"multiflora rose",null,null,null,"wavyleaf basketgrass"]
[]
[null,null,"Mid-Contract Management (MCM):   "]
[null,null,"Implement the MCM practices indicated in Table 1 below, to prolong, improve, or diversify the benefits of the CP15A cover.  Contact NRCS for a site visit and field evaluation before conducting MCM, to verify that the contracted MCM activity applies to the condition of the site."]
[]
[null,null,"By signing this document, the participant agrees to implement the CP15A conservation practice following the technical recommendations provided by NRCS and approved by FSA.  Any changes to the CP15A practice must receive NRCS and FSA approval prior to implementation."]
[]
[]
[]
[null,null,"Table 1: Mid-Contract Management Activity and Schedule"]
[null,null,"Select number of fields",null,null,null,null,null,null,null,"     (items in grey are for USDA reporting only)"]
[null,null,null,"Field","Mid-Contract Management",null,null,null,null,"Acres Planned","Year Planned","Acres Applied","Year Applied","Certified By:"]
[null,null,10,null,null,null,null,null,null,null,null,null,null,"NRCS / TSP","Participant"]
[null,null,null,1,"Select a MCM"]
[{"$f":"IF($C$55<2,\"No\",\"Yes\")","v":"Yes"},null,null,2,"Select a MCM"]
[{"$f":"IF($C$55<3,\"No\",\"Yes\")","v":"Yes"},null,null,3,"Select a MCM"]
[{"$f":"IF($C$55<4,\"No\",\"Yes\")","v":"Yes"},null,null,4,"Select a MCM"]
[{"$f":"IF($C$55<5,\"No\",\"Yes\")","v":"Yes"},null,null,5,"Select a MCM"]
[{"$f":"IF($C$55<6,\"No\",\"Yes\")","v":"Yes"},null,null,6,"Select a MCM"]
[{"$f":"IF($C$55<7,\"No\",\"Yes\")","v":"Yes"},null,null,7,"Select a MCM"]
[{"$f":"IF($C$55<8,\"No\",\"Yes\")","v":"Yes"},null,null,8,"Select a MCM"]
[{"$f":"IF($C$55<9,\"No\",\"Yes\")","v":"Yes"},null,null,9,"Select a MCM"]
[{"$f":"IF($C$55<10,\"No\",\"Yes\")","v":"Yes"},null,null,10,"Select a MCM"]
[null,null,"Certification Statement:"]
[null,null,"I certify that implementation of this conservation practice is complete, meets criteria for the stated purpose(s), and meets the NRCS conservation practice standard and specifications."]
[]
[]
[null,null,"Certified By:"]